bitfinex/quotes_ETHUSD_20251008
["timestamp","ask_amount","ask_price","bid_price","bid_amount"]
[1759930486495,0.02150018,4475.6,4474.3,0.4582]
[1759930486694,0.02150018,4475.6,4474.6,0.02334836]
[1759930486908,2.23439854,4475.5,4474.6,0.02334836]
[1759930487119,2.25594676,4475.4,4474.6,0.001]
[1759930487424,2.23449612,4475.3,4474.6,0.001]
[1759930487642,0.02150018,4475.2,4474.6,0.001]
[1759930487845,2.25603718,4475.2,4474.6,0.001]
[1759930488044,4.61773718,4475.2,4474.6,0.001]
[1759930488238,4.596237,4475.2,4474.6,0.001]
[1759930488432,1.92,4475.2,4474.6,0.001]
[1759930488652,1.94150018,4475.2,4474.6,0.001]
[1759930488845,1.92,4475.2,4474.6,0.001]
[1759930489348,1.92,4475.2,4474.6,0.02334836]
[1759930489522,1.92,4475.2,4474.6,0.001]
[1759930489931,1.92,4475.2,4474.6,0.02334836]
[1759930490430,4.154537,4475.2,4474.6,0.001]
[1759930490949,1.92,4475.2,4474.6,0.001]
[1759930491130,1.9192,4475.2,4474.6,0.001]
[1759930491533,1.9192,4475.2,4475.1,0.4692]
[1759930491731,1.9192,4475.2,4475.1,0.011]
[1759930494252,1.9192,4475.2,4475.1,14.9692]
[1759930494450,1.9192,4475.2,4475.1,15.47111572]
[1759930494627,0.02150018,4476.1,4475.1,15.47111572]
[1759930494957,3.03079701,4477.0,4475.1,15.47111572]
[1759930494958,2.23393291,4476.5,4475.5,2.2343645]
[1759930495249,0.1112,4476.3,4475.6,0.13354337]
[1759930495421,0.1112,4476.3,4475.6,2.36785735]
[1759930495617,0.1112,4476.3,4475.6,2.87391157]
[1759930495822,0.1112,4476.3,4475.6,0.63959759]
[1759930496058,1.92,4477.0,4475.8,2.23423177]
[1759930496274,0.1112,4476.8,4476.1,0.1112]
[1759930496558,0.1112,4476.8,4476.2,0.15324037]
[1759930496758,0.1112,4477.1,4476.4,2.34510056]
[1759930497052,0.60606646,4477.9,4476.4,2.34510056]
[1759930497053,0.47694658,4477.8,4476.5,14.98053888]
[1759930497262,0.1112,4477.7,4477.0,0.1112]
[1759930497445,0.1112,4477.7,4477.1,0.02233588]
[1759930497622,0.01,4477.9,4477.1,0.02233588]
[1759930497952,0.01,4477.9,4477.2,15.0694]
[1759930497953,0.1212,4477.9,4477.2,15.0694]
[1759930498162,0.01,4477.9,4477.6,0.1112]
[1759930498458,0.01,4477.9,4477.7,0.48053289]
[1759930498756,0.01,4477.9,4477.8,16.84443953]
[1759930499260,0.01,4477.9,4477.8,17.30263953]
[1759930500157,0.01,4477.9,4477.8,14.5]
[1759930500861,0.01,4477.9,4477.8,18.64143953]
[1759930501170,0.01,4477.9,4477.8,16.4082]
[1759930501538,0.01,4477.9,4477.8,18.64143953]
[1759930501867,0.01,4477.9,4477.8,16.4082]
[1759930502036,0.01,4477.9,4477.8,18.64143953]
[1759930502240,0.01,4477.9,4477.8,19.27503953]
[1759930502753,0.01,4477.9,4477.8,18.64143953]
[1759930503256,0.01,4477.9,4477.8,16.4082]
[1759930503565,0.01,4477.9,4476.8,0.4733]
[1759930503747,2.23328941,4477.7,4476.3,0.4733]
[1759930504068,0.01,4477.9,4476.4,14.52233937]
[1759930504241,0.01,4477.9,4476.5,1.98595394]
[1759930504557,1.92,4477.7,4475.8,0.4733]
[1759930504745,0.02150018,4477.6,4475.8,0.4733]
[1759930504946,0.02150018,4477.6,4475.9,14.52234187]
[1759930505134,2.25474538,4477.8,4476.0,0.4733]
[1759930505462,0.02150018,4477.7,4476.1,0.1309]
[1759930505759,2.3497,4477.6,4475.6,0.4733]
[1759930506057,2.3497,4477.6,4475.7,14.5]
[1759930506058,3.55780967,4477.5,4475.7,14.5]
[1759930506263,2.23368848,4476.9,4475.1,0.011]
[1759930506423,0.02150018,4476.8,4475.1,0.011]
[1759930506630,13.79189477,4476.3,4475.1,0.011]
[1759930506856,2.8478537,4476.2,4475.1,0.011]
[1759930507057,1.10468604,4476.1,4475.1,0.011]
[1759930507245,0.02150018,4476.0,4475.1,0.011]
[1759930507450,0.02150018,4476.5,4475.1,0.011]
[1759930507644,0.02150018,4476.5,4475.1,0.4843]
[1759930507842,2.25539978,4476.5,4475.1,0.4843]
[1759930508030,2.23410267,4476.1,4475.2,14.5]
[1759930508356,2.25564664,4476.0,4475.2,16.22189799]
[1759930508531,2.23419809,4475.9,4475.2,16.22189799]
[1759930508729,0.02150018,4475.8,4475.2,16.22189799]
[1759930508934,0.02150018,4476.1,4475.2,16.22189799]
[1759930509137,1.92,4476.3,4475.2,16.22189799]
[1759930509329,2.23408771,4476.1,4475.3,0.33835914]
[1759930509538,0.02150018,4476.0,4475.3,0.33835914]
[1759930509944,2.23418753,4475.9,4475.3,0.33835914]
[1759930510155,0.02150018,4475.8,4475.2,16.22189799]
[1759930510657,0.1112,4475.9,4475.2,16.22189799]
[1759930510846,2.23444681,4475.4,4475.1,0.011]
[1759930511046,0.1112,4475.4,4475.1,0.011]
[1759930511769,4.154537,4475.2,4475.1,0.011]
[1759930512275,2.234537,4475.2,4475.1,0.011]
[1759930512638,0.02150018,4475.3,4475.1,0.011]
[1759930513161,0.02150018,4476.0,4475.1,0.011]
[1759930513362,1.4243095,4475.9,4475.1,0.011]
[1759930513564,2.234537,4475.2,4475.1,0.011]
[1759930513768,2.23423759,4475.8,4475.1,0.011]
[1759930513930,0.1112,4475.2,4475.1,0.011]
[1759930514131,0.1104,4475.2,4475.1,0.011]
[1759930514344,2.23399225,4476.3,4475.1,0.011]
[1759930514560,0.1112,4475.5,4475.1,0.011]
[1759930515435,0.1112,4475.5,4475.2,0.4733]
[1759930515852,0.1112,4475.5,4475.1,14.511]
[1759930516177,0.4297,4475.4,4475.1,0.011]
[1759930516333,0.1112,4475.2,4475.1,0.011]
[1759930516856,0.13270018,4475.2,4475.1,0.011]
[1759930517174,0.1112,4475.2,4475.1,0.011]
[1759930517338,2.23413183,4476.1,4475.1,0.50664586]
[1759930517697,0.1112,4475.6,4475.1,0.4843]
[1759930517867,0.1112,4476.1,4475.4,2.34559657]
[1759930518057,0.02150018,4476.9,4475.5,3.23758262]
[1759930518259,0.1112,4476.5,4475.8,0.1112]
[1759930518562,0.012,4477.9,4475.9,3.04564187]
[1759930518738,2.23343679,4477.5,4476.5,2.23388808]
[1759930518940,0.012,4477.9,4476.6,17.05]
[1759930518941,0.1112,4477.3,4476.6,17.05]
[1759930519143,0.45760018,4477.2,4476.6,2.55]
[1759930519353,0.1112,4476.7,4475.5,0.4733]
[1759930519554,2.23391827,4476.5,4475.1,0.011]
[1759930519760,0.1112,4475.9,4475.6,2.153]
[1759930520075,0.1112,4475.9,4475.7,0.49564287]
[1759930520234,4.15384233,4476.6,4475.7,0.49564287]
[1759930520235,2.23400762,4476.3,4475.7,0.49564287]
[1759930520437,0.1112,4476.2,4475.7,0.49564287]
[1759930520658,0.45760018,4476.1,4475.6,2.153]
[1759930520855,0.1112,4475.9,4475.3,2.55]
[1759930521068,2.23443523,4475.5,4475.1,0.1222]
[1759930521247,2.2343182,4475.7,4475.2,2.55]
[1759930521474,0.02150018,4475.8,4475.2,2.55]
[1759930521676,0.1112,4475.9,4475.1,0.1222]
[1759930521906,0.1112,4475.6,4475.1,0.011]
[1759930522301,2.34557308,4475.6,4475.1,0.011]
[1759930522503,0.45760018,4475.5,4475.1,0.011]
[1759930522713,0.02150018,4475.5,4475.1,0.011]
[1759930523112,0.1112,4475.6,4475.1,0.4843]
[1759930523316,0.1112,4475.6,4475.1,0.011]
[1759930523317,0.02150018,4475.5,4475.1,0.011]
[1759930524271,0.1112,4475.6,4475.1,0.011]
[1759930524480,0.1112,4475.7,4475.2,0.4733]
[1759930524999,0.1112,4475.7,4475.3,0.49564487]
[1759930525310,0.1112,4475.7,4475.3,0.02234487]
[1759930525674,0.1112,4475.7,4475.1,0.011]
[1759930525982,0.1112,4475.7,4475.2,2.549]
[1759930526187,2.23433742,4475.6,4475.2,2.549]
[1759930526912,2.23433742,4475.6,4475.1,0.011]
[1759930526913,2.23434891,4475.6,4475.3,2.549]
[1759930527699,0.13270018,4475.7,4475.3,2.549]
[1759930527883,0.1112,4475.7,4475.3,2.549]
[1759930528082,0.1112,4475.7,4475.4,0.97509949]
[1759930528385,0.1112,4475.7,4475.4,0.50179949]
[1759930528585,2.23437806,4475.6,4475.1,0.011]
[1759930528775,2.23446269,4475.4,4475.2,2.549]
[1759930528998,14.24949495,4475.3,4475.1,0.011]
[1759930529199,4.590637,4475.2,4475.1,0.011]
[1759930529395,6.65233888,4475.2,4475.1,0.011]
[1759930529810,6.65233888,4475.2,4473.7,0.11202717]
[1759930529811,1.92,4474.7,4473.7,0.00082717]
[1759930530010,2.86833674,4474.8,4471.1,0.01]
[1759930530011,5.84780188,4475.2,4471.1,0.01]
[1759930530012,2.23557309,4473.2,4471.1,0.01]
[1759930530213,4.15603595,4472.2,4471.1,0.01]
[1759930530539,4.15603595,4472.2,4471.2,0.388]
[1759930530540,4.17753613,4472.2,4471.2,0.388]
[1759930530702,4.61143613,4472.2,4471.2,0.388]
[1759930530903,4.58993595,4472.2,4471.2,1.361]
[1759930531100,1.92,4472.2,4471.4,2.23643495]
[1759930531432,1.92,4472.2,4471.7,2.23627424]
[1759930531651,0.02150018,4473.3,4472.1,3.2086]
[1759930532150,0.02150018,4473.6,4472.1,3.2086]
[1759930532455,1.92,4473.0,4472.1,2.56]
[1759930532600,1.92,4473.8,4472.2,15.17196035]
[1759930532801,0.02150018,4473.7,4472.3,1.77319604]
[1759930533001,0.02150018,4473.7,4472.4,0.02235935]
[1759930533212,0.02150018,4473.9,4472.4,0.4307]
[1759930533417,0.02150018,4473.9,4472.5,14.5]
[1759930533648,0.02150018,4474.2,4472.5,14.5]
[1759930533949,2.23524311,4473.8,4472.6,4.04407]
[1759930534161,0.4403,4474.3,4472.6,4.04407]
[1759930534162,0.02150018,4473.7,4472.7,0.02235785]
[1759930534314,0.02150018,4474.2,4473.3,2.23548566]
[1759930534513,0.02150018,4474.4,4473.4,2.57335436]
[1759930535022,0.03150018,4474.9,4473.4,2.551]
[1759930535343,0.01,4474.9,4473.5,2.17887]
[1759930535544,2.23488658,4474.5,4473.6,2.55]
[1759930535748,0.02150018,4474.4,4473.7,2.551]
[1759930536046,0.02150018,4474.6,4473.7,4.78627677]
[1759930536247,2.25634392,4474.6,4473.7,2.551]
[1759930536551,0.02150018,4474.6,4473.8,4.80757245]
[1759930536754,0.02150018,4474.6,4473.8,4.78522009]
[1759930536955,2.23481667,4474.7,4473.8,2.55]
[1759930537144,0.02070018,4474.6,4473.8,2.57235236]
[1759930537347,2.25554742,4474.6,4473.9,2.55]
[1759930537554,0.02070018,4474.6,4473.8,0.02235236]
[1759930537725,0.03070018,4474.9,4473.9,2.55]
[1759930537921,2.23484401,4474.6,4474.0,2.55]
[1759930538155,2.24469114,4474.9,4474.1,14.5]
[1759930538156,2.23490104,4474.5,4474.1,14.5]
[1759930538356,0.02070018,4474.5,4474.1,17.05]
[1759930538556,2.23494904,4474.4,4474.1,14.5]
[1759930538864,0.48270018,4474.3,4471.1,0.01]
[1759930539029,2.23573355,4472.9,4471.1,0.01]
[1759930539348,2.23578599,4472.7,4472.1,14.51]
[1759930539524,2.23599851,4472.3,4472.1,0.01]
[1759930539726,2.25673613,4472.2,4472.1,0.01]
[1759930539952,2.36793613,4472.2,4472.1,0.01]
[1759930540728,16.6218309,4472.2,4472.1,0.01]
[1759930541053,18.67890845,4472.2,4472.1,0.01]
[1759930541577,1.92,4472.1,4471.1,0.01]
[1759930541731,0.02070018,4472.0,4471.1,0.01]
[1759930541930,0.02070018,4472.0,4470.8,2.38336686]
[1759930542251,0.02070018,4472.0,4470.6,14.5]
[1759930542252,1.94795107,4472.1,4470.9,1.70118198]
[1759930542434,2.26406038,4472.1,4470.9,1.70118198]
[1759930542635,2.26406038,4472.1,4470.9,0.01284529]
[1759930542863,0.02795107,4472.1,4471.0,14.5]
[1759930543062,2.23628034,4471.8,4471.0,14.5]
[1759930543264,2.23633598,4471.6,4470.6,2.55]
[1759930543575,0.46265482,4471.5,4470.1,0.01]
[1759930543758,1.92,4471.0,4470.1,0.01]
[1759930544075,2.23673615,4470.8,4470.1,0.01]
[1759930544257,2.23691017,4470.5,4470.1,0.01]
[1759930544567,0.0279617,4470.4,4470.1,0.01]
[1759930544863,2.23703637,4470.2,4470.1,0.01]
[1759930545055,17.13378994,4470.2,4470.1,0.01]
[1759930545251,19.02582699,4470.2,4470.1,0.01]
[1759930546140,19.65942699,4470.2,4470.1,1e-08]
[1759930546869,1.92,4470.1,4467.1,0.01]
[1759930547071,1.92,4469.5,4467.5,0.008]
[1759930547373,13.79189477,4469.1,4467.1,0.01]
[1759930547535,17.94993245,4468.2,4467.1,0.01]
[1759930547873,17.94993245,4468.2,4467.1,14.51]
[1759930548184,4.79163768,4468.2,4467.1,0.01]
[1759930548333,4.59273768,4468.2,4467.1,0.01]
[1759930548528,18.38463245,4468.2,4467.1,0.01]
[1759930549061,20.44689185,4468.2,4467.1,0.01]
[1759930549259,13.79189477,4467.2,4467.1,1e-08]
[1759930549574,13.79189477,4467.2,4464.1,0.1412]
[1759930549575,0.6336,4466.9,4464.1,0.1412]
[1759930549733,1.92,4467.1,4465.7,0.4736]
[1759930549734,0.02798298,4467.0,4465.7,0.4736]
[1759930549934,0.79710944,4467.5,4466.2,0.23150557]
[1759930549935,0.02797985,4467.5,4466.2,0.23150557]
[1759930550132,0.02797985,4467.5,4466.3,0.41056442]
[1759930550369,0.02797672,4468.0,4466.4,14.51290162]
[1759930550539,1.92,4467.8,4466.5,0.01289844]
[1759930550743,1.92,4467.8,4466.7,2.23874502]
[1759930551066,1.92,4467.8,4466.3,0.41056442]
[1759930551067,0.0279786,4467.7,4466.3,0.41056442]
[1759930551252,0.02797922,4467.6,4466.8,14.5]
[1759930551450,0.02797922,4467.6,4466.9,0.1112]
[1759930551654,0.02797922,4467.6,4466.8,14.5]
[1759930551655,0.1112,4468.1,4467.0,0.01289651]
[1759930551831,0.1112,4468.1,4467.3,0.1112]
[1759930552038,0.02797672,4468.0,4467.3,0.1112]
[1759930552240,0.01,4468.9,4467.4,0.0128915]
[1759930552471,0.01,4468.9,4468.2,2.2380107]
[1759930552472,0.13917171,4468.8,4468.2,2.2380107]
[1759930552640,0.1112,4468.8,4468.2,2.2380107]
[1759930552974,0.01,4468.9,4468.4,2.23793751]
[1759930553175,0.01,4469.9,4468.7,0.6336]
[1759930553374,0.01,4469.9,4468.8,0.01287156]
[1759930553538,0.01,4469.9,4469.3,2.23747419]
[1759930553741,0.01,4469.9,4469.8,2.23723656]
[1759930553940,0.01,4469.9,4469.8,19.29323656]
[1759930554139,0.81413694,4471.9,4469.9,0.6336]
[1759930554140,0.49874972,4471.7,4469.9,0.6336]
[1759930554337,0.02795357,4471.7,4470.8,2.23673615]
[1759930554672,0.01,4471.9,4470.8,2.23673615]
[1759930554673,0.01,4471.9,4470.8,4.79273615]
[1759930554872,0.01,4471.9,4470.8,5.26633615]
[1759930555037,0.01,4471.9,4470.8,20.39993615]
[1759930555233,1e-08,4470.9,4470.8,22.6517066]
[1759930555467,1e-08,4470.9,4470.8,20.0957066]
[1759930555975,1e-08,4470.9,4470.8,22.6527066]
[1759930556975,1e-08,4470.9,4470.8,24.5727066]
[1759930557339,1e-08,4470.9,4470.8,22.0157066]
[1759930557584,1e-08,4470.9,4470.8,24.5727066]
[1759930557740,1e-08,4470.9,4470.8,24.5717066]
[1759930557940,1e-08,4470.9,4470.8,20.0957066]
[1759930558157,1e-08,4470.9,4470.8,22.6517066]
[1759930559180,1e-08,4470.9,4470.8,24.5717066]
[1759930559484,1e-08,4470.9,4470.8,23.9381066]
[1759930559683,1e-08,4470.9,4470.8,24.5717066]
[1759930560386,0.00920001,4471.9,4471.8,2.86983596]
[1759930560720,0.01,4473.9,4473.8,0.6336]
[1759930560878,0.01,4473.9,4473.8,4.79123626]
[1759930561079,0.01,4473.9,4473.8,19.29123626]
[1759930561308,0.01,4473.9,4473.8,20.32403626]
[1759930561831,0.01,4474.9,4473.9,2.5536]
[1759930562008,0.01,4474.9,4474.8,0.2151]
[1759930562179,0.01,4474.9,4474.0,0.4288]
[1759930562382,0.01,4474.9,4474.2,0.6336]
[1759930562604,0.01,4474.9,4474.8,14.5]
[1759930562825,0.01,4474.9,4474.8,14.6112]
[1759930563034,0.01,4474.9,4474.8,17.1672]
[1759930563305,0.01,4474.9,4474.8,14.6112]
[1759930563505,2.46914242,4474.9,4474.8,14.6112]
[1759930563726,0.23445562,4474.9,4474.8,17.1672]
[1759930563932,0.01,4474.9,4474.8,17.1672]
[1759930564301,0.01,4474.9,4474.8,19.83073674]
[1759930564718,0.01,4474.9,4474.8,17.596]
[1759930564917,0.01,4474.9,4474.8,19.83073674]
[1759930565144,0.01,4474.9,4474.8,14.6112]
[1759930565343,0.01,4474.9,4472.1,0.01]
[1759930565344,1.92,4474.2,4472.1,0.01]
[1759930565542,0.02793857,4474.1,4472.2,1.3548]
[1759930565743,0.02793545,4474.6,4472.4,0.6336]
[1759930565910,2.2352402,4473.8,4472.5,0.62892244]
[1759930566106,2.23538599,4473.6,4472.6,2.556]
[1759930566310,2.26333685,4473.5,4472.6,2.556]
[1759930566572,2.23544329,4473.4,4472.6,2.556]
[1759930566716,0.0279417,4473.6,4472.6,2.556]
[1759930566919,0.02793982,4473.9,4472.7,1.92918697]
[1759930567369,0.02793733,4474.3,4472.7,1.92918697]
[1759930567515,1.92,4474.1,4472.1,0.01]
[1759930567858,0.0279392,4474.0,4472.2,0.50082518]
[1759930568146,2.23580272,4472.7,4472.2,14.5]
[1759930568356,0.46424794,4472.6,4472.1,0.01]
[1759930568563,0.46424794,4472.6,4468.3,0.1289]
[1759930568564,2.23623247,4471.9,4470.4,2.555]
[1759930568846,0.02795294,4471.8,4471.1,0.027]
[1759930569209,0.4363,4472.1,4471.1,0.01]
[1759930569413,0.4363,4472.1,4471.1,2.565]
[1759930569414,2.23653605,4471.2,4471.1,2.565]
[1759930569625,2.26449275,4471.2,4471.1,2.565]
[1759930569940,1.92,4473.0,4471.1,3.2503]
[1759930570138,2.235736,4472.8,4471.5,2.23638453]
[1759930570345,0.02794732,4472.7,4471.6,2.99863605]
[1759930570548,2.23591352,4472.5,4471.1,0.2665]
[1759930570716,0.4363,4473.0,4471.2,2.558]
[1759930570717,2.23613084,4472.1,4471.2,2.558]
[1759930570915,0.02795169,4472.0,4471.3,14.5]
[1759930571125,0.02794919,4472.4,4471.3,14.5]
[1759930571349,0.02794607,4472.9,4471.4,0.01283951]
[1759930571539,1.94794607,4472.9,4471.5,1.74996395]
[1759930571846,0.46424607,4472.9,4471.6,2.558]
[1759930572145,2.23583275,4472.7,4471.7,17.0708348]
[1759930572315,2.26379502,4472.6,4471.8,2.558]
[1759930572512,0.02794794,4472.6,4471.8,2.558]
[1759930572744,0.02794794,4472.6,4471.7,14.5]
[1759930572947,1.92,4472.4,4471.1,0.01]
[1759930573111,14.44427745,4472.5,4471.1,0.01]
[1759930573112,1.92,4472.1,4471.1,0.01]
[1759930573316,0.02795169,4472.0,4471.2,14.5128425]
[1759930573515,0.02795169,4472.0,4471.2,16.73653098]
[1759930573734,0.02795169,4472.0,4471.2,14.5]
[1759930573934,2.23607706,4472.2,4471.2,14.5]
[1759930574155,0.02794982,4472.3,4471.2,15.50358915]
[1759930574445,0.0279442,4473.2,4471.2,15.93238915]
[1759930574617,2.23584383,4472.6,4471.2,18.16892473]
[1759930574811,0.9079387,4473.3,4471.2,18.16892473]
[1759930574812,0.02794857,4472.5,4471.3,2.23645983]
[1759930575045,0.0279442,4473.2,4472.0,2.23613394]
[1759930575245,0.1112,4473.5,4472.4,0.1112]
[1759930575553,0.02794107,4473.7,4472.1,3.13433028]
[1759930575554,2.26324923,4473.7,4473.1,0.1112]
[1759930575772,0.02794107,4473.7,4473.1,2.6692]
[1759930575916,0.13914045,4473.8,4473.1,2.6692]
[1759930576258,2.23546243,4473.4,4473.1,0.1112]
[1759930576454,14.00797745,4473.2,4471.1,0.01]
[1759930576755,0.1112,4472.1,4471.3,0.1112]
[1759930576961,2.23618596,4471.9,4471.3,0.1112]
[1759930577118,0.02795169,4472.0,4471.1,0.01]
[1759930577119,0.02795294,4471.8,4471.1,0.01]
[1759930577314,1.92,4471.6,4471.1,0.01]
[1759930577564,0.02795419,4471.6,4471.3,0.1112]
[1759930577742,0.02795232,4471.9,4471.3,0.1112]
[1759930578181,2.23623596,4471.8,4471.3,0.1112]
[1759930578362,2.23623596,4471.8,4471.1,0.01]
[1759930578363,1.94795357,4471.7,4471.1,0.01]
[1759930578564,2.23653605,4471.2,4471.1,0.01]
[1759930578796,2.23644974,4471.4,4471.1,0.01]
[1759930578797,2.34734494,4472.0,4471.3,0.1112]
[1759930579089,1.92,4472.5,4471.3,0.1112]
[1759930579090,0.02794919,4472.4,4471.4,0.01284144]
[1759930579252,0.02794919,4472.4,4471.8,0.1112]
[1759930579753,2.26388679,4472.4,4471.8,0.1112]
[1759930579949,0.02794919,4472.4,4471.8,0.1112]
[1759930580561,2.23608595,4472.1,4471.4,2.56]
[1759930580760,2.236386,4471.5,4471.4,2.6712]
[1759930580960,0.02795294,4471.8,4471.4,2.6712]
[1759930581503,0.47402068,4472.5,4471.5,0.01284164]
[1759930581718,0.02794919,4472.4,4471.7,0.1112]
[1759930581889,2.26364091,4472.9,4472.2,0.1112]
[1759930582091,0.02794607,4472.9,4472.2,2.6712]
[1759930582301,0.47577192,4472.9,4472.3,0.01283019]
[1759930582496,4.15574412,4472.8,4472.3,0.01283028]
[1759930582702,0.59471491,4473.3,4472.7,0.1112]
[1759930583024,0.5037402,4473.2,4471.9,2.23618257]
[1759930583314,2.23489484,4472.9,4472.0,4.79612528]
[1759930583514,2.23489484,4472.9,4472.0,2.56]
[1759930583717,2.23573928,4472.8,4471.9,2.23616421]
[1759930583922,0.02794545,4473.0,4472.1,2.56]
[1759930584217,0.02794545,4473.0,4472.1,4.79608394]
[1759930584420,0.02794482,4473.1,4472.2,2.23602229]
[1759930584618,0.02794482,4473.1,4472.1,2.56]
[1759930584819,2.23583862,4472.6,4472.1,2.56]
[1759930585020,2.23578851,4472.7,4471.9,2.23618214]
[1759930585190,2.23578851,4472.7,4472.2,2.56]
[1759930585392,4.18364107,4472.9,4472.2,2.56]
[1759930585689,4.18364107,4472.9,4471.8,14.5]
[1759930585690,1.92,4472.7,4471.8,14.5]
[1759930585938,2.23613595,4472.0,4471.9,2.559]
[1759930586093,0.85732579,4472.6,4471.6,0.001]
[1759930586094,0.02794982,4472.3,4471.6,0.001]
[1759930586434,2.23623596,4471.8,4471.7,0.408]
[1759930586644,1.92,4472.3,4471.7,0.408]
[1759930586841,0.59471491,4472.8,4471.7,0.408]
[1759930586842,0.02794732,4472.7,4471.8,0.01283692]
[1759930587125,0.5040618,4473.5,4471.9,0.4288]
[1759930587326,0.02794232,4473.5,4472.0,14.5]
[1759930587525,14.92039693,4473.4,4472.0,14.5]
[1759930587732,0.71079373,4473.3,4472.1,2.56]
[1759930587933,2.60285016,4473.2,4471.6,0.001]
[1759930588230,2.23598871,4472.3,4471.7,2.56]
[1759930588605,2.26393853,4472.3,4471.7,2.56]
[1759930588801,0.02794919,4472.4,4471.7,2.56]
[1759930589003,2.23589241,4472.5,4471.8,14.9288]
[1759930589224,0.02794919,4472.4,4471.8,14.5]
[1759930589560,0.02794919,4472.4,4471.9,0.01283567]
[1759930589764,0.02794732,4472.7,4472.0,0.4288]
[1759930589943,0.02794107,4473.7,4472.3,0.1347]
[1759930590243,2.23533619,4473.6,4472.7,2.23576093]
[1759930590450,0.47618781,4473.8,4472.8,0.01282298]
[1759930590620,0.02794107,4473.7,4472.8,2.23569948]
[1759930590821,0.02794107,4473.7,4472.9,2.23564813]
[1759930591035,0.02794107,4473.7,4472.6,2.23582117]
[1759930591036,0.02794107,4473.7,4473.0,17.06]
[1759930591234,0.02794107,4473.7,4473.1,0.01282019]
[1759930591547,0.01,4473.9,4473.2,0.4536]
[1759930591752,0.01,4473.9,4473.3,0.01281769]
[1759930592044,0.01,4474.9,4473.3,0.01281769]
[1759930592045,0.01,4474.9,4474.7,2.23478668]
[1759930592247,0.01,4474.9,4474.7,19.76018881]
[1759930592422,0.01,4474.9,4474.7,19.74738668]
[1759930592962,0.01,4474.9,4474.7,15.0648]
[1759930593144,2.24473071,4474.9,4474.7,14.6112]
[1759930593317,0.01,4474.9,4474.7,17.1702]
[1759930593745,0.01,4474.9,4474.7,19.34082]
[1759930594047,0.01,4474.9,4474.7,21.57560668]
[1759930594931,0.01,4474.9,4474.7,22.20920668]
[1759930595818,0.01,4474.9,4474.7,16.78182]
[1759930596042,0.01,4474.9,4474.7,21.57560668]
[1759930596344,0.01,4474.9,4474.7,22.20920668]
[1759930599249,0.01,4474.9,4474.7,22.20820668]
[1759930600652,0.01,4474.9,4474.7,16.78182]
[1759930600848,0.01,4474.9,4474.7,17.1682]
[1759930601041,0.01,4474.9,4474.7,17.6218]
[1759930601241,0.01,4474.9,4474.7,17.1682]
[1759930601553,0.01,4474.9,4474.7,0.1112]
[1759930601854,2.23673674,4474.8,4474.7,2.6682]
[1759930602171,2.23673674,4474.8,4474.7,2.4282]
[1759930602665,2.23673674,4474.8,4471.6,2.23731089]
[1759930602666,2.23503643,4474.2,4474.1,2.557]
[1759930602896,2.23503643,4474.2,4472.4,0.4744]
[1759930602897,0.4308,4474.2,4473.7,0.1112]
[1759930603022,0.4308,4474.2,4472.1,0.01]
[1759930603023,1.92,4473.5,4473.0,0.575]
[1759930603221,1.92,4473.5,4472.9,1.5882]
[1759930603222,2.235594,4473.1,4472.9,1.5882]
[1759930603423,2.23562514,4473.1,4472.9,1.5882]
[1759930603633,0.02794482,4473.1,4472.9,1.5882]
[1759930603840,2.23562684,4473.1,4472.9,1.5882]
[1759930604034,14.00797745,4473.6,4472.9,1.5882]
[1759930604035,2.23533619,4473.6,4472.9,1.5882]
[1759930604265,0.02794232,4473.5,4472.9,1.5882]
[1759930604485,2.23540231,4473.5,4473.3,0.1112]
[1759930604653,0.0279417,4473.6,4473.4,2.557]
[1759930604855,2.23538616,4473.5,4473.4,2.557]
[1759930605055,2.23538616,4473.5,4473.3,0.1112]
[1759930605056,2.23543613,4473.4,4473.3,0.1112]
[1759930605364,2.23543613,4473.4,4471.6,0.001]
[1759930605365,2.37874295,4473.4,4471.6,0.001]
[1759930605564,2.23583597,4472.6,4471.6,0.001]
[1759930605763,0.02794857,4472.5,4472.3,0.1112]
[1759930605967,0.02794607,4472.9,4472.3,0.1112]
[1759930606163,2.23588596,4472.5,4472.4,2.557]
[1759930606476,2.26303453,4472.5,4472.4,2.557]
[1759930606652,0.02794732,4472.7,4472.4,2.557]
[1759930606853,4.15533657,4473.6,4472.5,0.1112]
[1759930606854,0.02794545,4473.0,4472.5,0.1112]
[1759930607049,2.23571592,4472.9,4472.6,2.201]
[1759930607284,2.23578599,4472.7,4472.6,0.1112]
[1759930607492,0.25431284,4472.8,4472.6,0.1112]
[1759930607659,0.0279467,4472.8,4472.6,0.1112]
[1759930607853,2.23578599,4472.7,4472.6,0.1112]
[1759930608057,0.02794607,4472.9,4472.6,0.1112]
[1759930608362,2.23577983,4472.8,4472.6,0.1112]
[1759930608700,4.18373331,4472.7,4472.6,0.1112]
[1759930608884,2.23588596,4472.5,4472.4,2.557]
[1759930609207,2.23588596,4472.5,4472.1,0.01]
[1759930609208,4.15593596,4472.4,4472.1,1e-08]
[1759930609493,4.15593596,4472.4,4471.1,0.01]
[1759930609494,2.2364602,4471.4,4471.1,0.01]
[1759930609663,16.4736135,4471.2,4471.1,0.01]
[1759930609988,16.4736135,4471.2,4470.1,0.01]
[1759930609989,2.23703637,4470.2,4470.1,0.01]
[1759930610193,2.26499932,4470.2,4470.1,0.01]
[1759930610355,4.61379932,4470.2,4470.1,0.01]
[1759930610561,5.21377696,4470.2,4470.1,0.01]
[1759930610755,1.92,4470.1,4469.1,0.01]
[1759930611087,4.15743679,4469.4,4469.1,0.01]
[1759930611272,2.23753691,4469.2,4469.1,0.01]